[Event "Live Chess"]
[Site "Chess.com"]
[Date "2023.05.21"]
[Round "-"]
[White "ShanthamGrarks"]
[Black "whatnot126"]
[Result "0-1"]
[WhiteElo "1986"]
[BlackElo "2058"]
[TimeControl "300"]
[EndTime "18:29:10 PDT"]
[Termination "whatnot126 won by resignation"]

1. d4 {[%clk 0:04:56.8]} 1... d6 {[%clk 0:04:58.3]} 2. Nc3 {[%clk 0:04:54.1]}
2... Nf6 {[%clk 0:04:57.4]} 3. e4 {[%clk 0:04:53.3]} 3... g6 {[%clk 0:04:56.8]}
4. Bg5 {[%clk 0:04:51.3]} 4... Bg7 {[%clk 0:04:55.8]} 5. Be2 {[%clk 0:04:50.9]}
5... O-O {[%clk 0:04:53.4]} 6. h4 {[%clk 0:04:50.4]} 6... c5 {[%clk 0:04:44.5]}
7. d5 {[%clk 0:04:48.3]} 7... Qa5 {[%clk 0:04:39]} 8. Bf3 {[%clk 0:04:41]} 8...
e6 {[%clk 0:04:20.4]} 9. Ne2 {[%clk 0:04:32.3]} 9... exd5 {[%clk 0:04:16.7]} 10.
exd5 {[%clk 0:04:30]} 10... Re8 {[%clk 0:04:08.1]} 11. O-O {[%clk 0:04:28.7]}
11... h6 {[%clk 0:04:06.7]} 12. Bd2 {[%clk 0:04:24.8]} 12... Nbd7 {[%clk
0:04:03.4]} 13. Ne4 {[%clk 0:04:20.8]} 13... Qc7 {[%clk 0:03:58.1]} 14. N4g3
{[%clk 0:04:12.5]} 14... Ne5 {[%clk 0:03:53.2]} 15. Nf4 {[%clk 0:03:56.7]} 15...
Nxf3+ {[%clk 0:03:33.3]} 16. Qxf3 {[%clk 0:03:54.4]} 16... Bg4 {[%clk
0:03:32.2]} 17. Qd3 {[%clk 0:03:51.7]} 17... c4 {[%clk 0:03:26]} 18. Qa3 {[%clk
0:03:42.5]} 18... g5 {[%clk 0:02:57.4]} 19. hxg5 {[%clk 0:03:39.5]} 19... hxg5
{[%clk 0:02:56.4]} 20. Nh3 {[%clk 0:03:34.8]} 20... Nxd5 {[%clk 0:02:48.5]} 21.
Nxg5 {[%clk 0:03:27.6]} 21... Nf6 {[%clk 0:02:23.6]} 22. Bf4 {[%clk 0:03:17.5]}
22... Qb6 {[%clk 0:02:17.7]} 23. Bxd6 {[%clk 0:03:09.3]} 23... Rad8 {[%clk
0:02:06.8]} 24. Bc5 {[%clk 0:03:02.9]} 24... Qc6 {[%clk 0:02:05.9]} 25. Rfe1
{[%clk 0:02:46.7]} 25... b6 {[%clk 0:01:56.8]} 26. Be3 {[%clk 0:02:36.1]} 26...
Nd5 {[%clk 0:01:52.9]} 27. N5e4 {[%clk 0:02:15.6]} 27... Qg6 {[%clk 0:01:49.7]}
28. f3 {[%clk 0:01:54.9]} 28... Bc8 {[%clk 0:01:48.4]} 29. Qxa7 {[%clk
0:01:38.2]} 29... f5 {[%clk 0:01:44]} 30. Bg5 {[%clk 0:01:14.6]} 30... fxe4
{[%clk 0:01:37.5]} 31. Bxd8 {[%clk 0:01:13.4]} 31... Bd4+ {[%clk 0:01:22.2]} 32.
Kh2 {[%clk 0:01:04.1]} 32... Bf2 {[%clk 0:01:19.7]} 33. Rxe4 {[%clk 0:00:59.2]}
33... Qxg3+ {[%clk 0:01:07.6]} 34. Kh1 {[%clk 0:00:57.5]} 34... Rxe4 {[%clk
0:01:07.1]} 35. fxe4 {[%clk 0:00:51.6]} 35... Bh3 {[%clk 0:01:00.5]} 36. Rg1
{[%clk 0:00:25.1]} 36... Bxg1 {[%clk 0:00:59.6]} 37. Qg7+ {[%clk 0:00:19.7]}
37... Kxg7 {[%clk 0:00:57.7]} 38. Bf6+ {[%clk 0:00:17.8]} 38... Kxf6 {[%clk
0:00:56.7]} 39. e5+ {[%clk 0:00:16.8]} 39... Kxe5 {[%clk 0:00:56.1]} 0-1

[Event "Live Chess"]
[Site "Chess.com"]
[Date "2023.05.21"]
[Round "-"]
[White "LodeshChess"]
[Black "Missedidea"]
[Result "0-1"]
[WhiteElo "1168"]
[BlackElo "1825"]
[TimeControl "300"]
[EndTime "18:29:11 PDT"]
[Termination "Missedidea won by checkmate"]

1. e4 {[%clk 0:04:59.4]} 1... c5 {[%clk 0:04:57.5]} 2. Nf3 {[%clk 0:04:57.6]}
2... d6 {[%clk 0:04:56.2]} 3. d4 {[%clk 0:04:57]} 3... cxd4 {[%clk 0:04:54.6]}
4. Qxd4 {[%clk 0:04:56.6]} 4... Nc6 {[%clk 0:04:51.6]} 5. Qe3 {[%clk 0:04:55.8]}
5... Nf6 {[%clk 0:04:49.3]} 6. Be2 {[%clk 0:04:55]} 6... g6 {[%clk 0:04:47]} 7.
O-O {[%clk 0:04:49.9]} 7... Bg7 {[%clk 0:04:44.9]} 8. Rd1 {[%clk 0:04:48.9]}
8... Qc7 {[%clk 0:04:35.9]} 9. c4 {[%clk 0:04:46.7]} 9... O-O {[%clk 0:04:33.2]}
10. Nc3 {[%clk 0:04:45.7]} 10... e6 {[%clk 0:04:28.7]} 11. b3 {[%clk 0:04:44.7]}
11... Ng4 {[%clk 0:04:24.8]} 12. Qd2 {[%clk 0:04:29.5]} 12... d5 {[%clk
0:04:09.4]} 13. Ba3 {[%clk 0:04:21.1]} 13... Rd8 {[%clk 0:03:58]} 14. exd5
{[%clk 0:04:17.5]} 14... Nd4 {[%clk 0:03:24.9]} 15. Nxd4 {[%clk 0:04:00.1]}
15... Qxh2+ {[%clk 0:03:21.9]} 16. Kf1 {[%clk 0:03:56.3]} 16... Qh1# {[%clk
0:03:20.5]} 0-1

[Event "Live Chess"]
[Site "Chess.com"]
[Date "2023.05.21"]
[Round "-"]
[White "Delacorta"]
[Black "Olisingapore"]
[Result "0-1"]
[WhiteElo "1425"]
[BlackElo "1800"]
[TimeControl "300"]
[EndTime "18:30:01 PDT"]
[Termination "Olisingapore won by resignation"]

1. d4 {[%clk 0:04:55.9]} 1... Nf6 {[%clk 0:04:57.5]} 2. Nf3 {[%clk 0:04:54.3]}
2... d5 {[%clk 0:04:57.1]} 3. e3 {[%clk 0:04:52.9]} 3... c5 {[%clk 0:04:56.6]}
4. Bd3 {[%clk 0:04:50.7]} 4... Nc6 {[%clk 0:04:56]} 5. b3 {[%clk 0:04:48.4]}
5... e6 {[%clk 0:04:55.5]} 6. Bb2 {[%clk 0:04:47.2]} 6... Be7 {[%clk 0:04:55]}
7. O-O {[%clk 0:04:45.2]} 7... O-O {[%clk 0:04:54.4]} 8. Nbd2 {[%clk 0:04:44.4]}
8... cxd4 {[%clk 0:04:48.6]} 9. exd4 {[%clk 0:04:43]} 9... Qc7 {[%clk
0:04:38.5]} 10. Ne5 {[%clk 0:04:41.7]} 10... Nxe5 {[%clk 0:04:36.7]} 11. dxe5
{[%clk 0:04:41.6]} 11... Nd7 {[%clk 0:04:35.3]} 12. f4 {[%clk 0:04:40.8]} 12...
Bc5+ {[%clk 0:04:32.4]} 13. Kh1 {[%clk 0:04:38.6]} 13... Qd8 {[%clk 0:04:31.7]}
14. Rf3 {[%clk 0:04:36.5]} 14... Qh4 {[%clk 0:04:24.8]} 15. Rh3 {[%clk
0:04:33.3]} 15... Qxf4 {[%clk 0:04:22.2]} 16. Bxh7+ {[%clk 0:04:30.7]} 16... Kh8
{[%clk 0:04:20.2]} 17. Qh5 {[%clk 0:04:16.8]} 17... Qh6 {[%clk 0:04:07.6]} 18.
Qxh6 {[%clk 0:04:10.8]} 18... gxh6 {[%clk 0:04:06.2]} 19. Bd3 {[%clk 0:04:03.3]}
19... Kg7 {[%clk 0:04:04.3]} 20. Rf1 {[%clk 0:03:59.8]} 20... Be7 {[%clk
0:03:57.5]} 21. Rg3+ {[%clk 0:03:53.7]} 21... Kh8 {[%clk 0:03:54.8]} 22. Nf3
{[%clk 0:03:52.5]} 22... Nc5 {[%clk 0:03:49.1]} 23. Nd4 {[%clk 0:03:44.8]} 23...
Ne4 {[%clk 0:03:36.6]} 24. Bxe4 {[%clk 0:03:40.9]} 24... dxe4 {[%clk 0:03:35.7]}
25. Nf5 {[%clk 0:03:30.2]} 25... exf5 {[%clk 0:03:30.5]} 26. e6+ {[%clk
0:03:29.5]} 26... f6 {[%clk 0:03:22.4]} 27. Rxf5 {[%clk 0:03:12.7]} 27... Bxe6
{[%clk 0:03:18.7]} 28. Rh5 {[%clk 0:03:04]} 28... Kh7 {[%clk 0:03:11.5]} 29. Rg6
{[%clk 0:03:00.8]} 29... Kxg6 {[%clk 0:03:06.8]} 30. Bc1 {[%clk 0:02:57.8]}
30... Kxh5 {[%clk 0:03:05.1]} 0-1

[Event "Live Chess"]
[Site "Chess.com"]
[Date "2023.05.21"]
[Round "-"]
[White "NateSolon"]
[Black "Hussamalhaidar"]
[Result "1-0"]
[WhiteElo "2662"]
[BlackElo "1107"]
[TimeControl "300"]
[EndTime "18:30:27 PDT"]
[Termination "NateSolon won on time"]

1. d4 {[%clk 0:04:59.5]} 1... e5 {[%clk 0:04:57]} 2. dxe5 {[%clk 0:04:58.6]}
2... d6 {[%clk 0:04:56]} 3. Nf3 {[%clk 0:04:57.7]} 3... Nc6 {[%clk 0:04:52.6]}
4. Bg5 {[%clk 0:04:54.6]} 4... f6 {[%clk 0:04:39]} 5. exf6 {[%clk 0:04:54.5]}
5... gxf6 {[%clk 0:04:34.7]} 6. Bh4 {[%clk 0:04:53.7]} 6... Bg7 {[%clk 0:04:23]}
7. Nc3 {[%clk 0:04:52.5]} 7... Nge7 {[%clk 0:04:18.6]} 8. e3 {[%clk 0:04:50.7]}
8... Bg4 {[%clk 0:04:12.8]} 9. Be2 {[%clk 0:04:47.6]} 9... Qd7 {[%clk
0:04:00.5]} 10. Nd4 {[%clk 0:04:46.4]} 10... Bxe2 {[%clk 0:03:52.7]} 11. Qxe2
{[%clk 0:04:46.3]} 11... Nxd4 {[%clk 0:03:44.7]} 12. exd4 {[%clk 0:04:46.2]}
12... O-O-O {[%clk 0:03:41.7]} 13. O-O-O {[%clk 0:04:42.2]} 13... Kb8 {[%clk
0:03:34.9]} 14. Rhe1 {[%clk 0:04:39]} 14... Nc6 {[%clk 0:03:30.7]} 15. Nd5
{[%clk 0:04:35.4]} 15... Rde8 {[%clk 0:03:17.5]} 16. Qd3 {[%clk 0:04:25.7]}
16... Rxe1 {[%clk 0:02:53.8]} 17. Rxe1 {[%clk 0:04:25.6]} 17... Re8 {[%clk
0:02:48.5]} 18. Rxe8+ {[%clk 0:04:18.3]} 18... Qxe8 {[%clk 0:02:46.3]} 19. Ne3
{[%clk 0:04:17.4]} 19... Qh5 {[%clk 0:02:17.8]} 20. Bg3 {[%clk 0:04:05.8]} 20...
f5 {[%clk 0:02:05.6]} 21. Nxf5 {[%clk 0:03:57.6]} 21... Bh6+ {[%clk 0:01:46.1]}
22. Kb1 {[%clk 0:03:55.5]} 22... Nb4 {[%clk 0:01:26.7]} 23. Qf3 {[%clk
0:03:54.5]} 23... Qxf3 {[%clk 0:01:10.5]} 24. gxf3 {[%clk 0:03:54.4]} 24... Bf8
{[%clk 0:01:02.6]} 25. a3 {[%clk 0:03:51.2]} 25... Nc6 {[%clk 0:00:57.6]} 26. c4
{[%clk 0:03:48.9]} 26... b6 {[%clk 0:00:53.1]} 27. Kc2 {[%clk 0:03:47.7]} 27...
a5 {[%clk 0:00:50.8]} 28. d5 {[%clk 0:03:42.8]} 28... Ne5 {[%clk 0:00:47.4]} 29.
Bxe5 {[%clk 0:03:41.8]} 29... dxe5 {[%clk 0:00:45.3]} 30. a4 {[%clk 0:03:39]}
30... Kb7 {[%clk 0:00:41.7]} 31. Kd3 {[%clk 0:03:38.3]} 31... c6 {[%clk
0:00:39.5]} 32. Ke4 {[%clk 0:03:37.5]} 32... cxd5+ {[%clk 0:00:30.5]} 33. cxd5
{[%clk 0:03:37.4]} 33... Bc5 {[%clk 0:00:19]} 34. Kxe5 {[%clk 0:03:36.2]} 34...
Bxf2 {[%clk 0:00:17.6]} 35. Ke6 {[%clk 0:03:34.6]} 35... Kc7 {[%clk 0:00:13]}
36. d6+ {[%clk 0:03:33.6]} 36... Kd8 {[%clk 0:00:11.6]} 37. Ne7 {[%clk
0:03:28.5]} 37... Ke8 {[%clk 0:00:09.8]} 38. d7+ {[%clk 0:03:27.2]} 38... Kd8
{[%clk 0:00:07.5]} 39. Nc6+ {[%clk 0:03:26.3]} 39... Kc7 {[%clk 0:00:04.9]} 40.
d8=Q+ {[%clk 0:03:26.2]} 40... Kxc6 {[%clk 0:00:04]} 41. Qd5+ {[%clk 0:03:23.7]}
41... Kc7 {[%clk 0:00:00.4]} 42. Qd7+ {[%clk 0:03:23.6]} 1-0

[Event "Live Chess"]
[Site "Chess.com"]
[Date "2023.05.21"]
[Round "-"]
[White "manthanit"]
[Black "luckywookie"]
[Result "1-0"]
[WhiteElo "1057"]
[BlackElo "754"]
[TimeControl "300"]
[EndTime "18:30:30 PDT"]
[Termination "manthanit won by resignation"]

1. e4 {[%clk 0:04:59.3]} 1... c6 {[%clk 0:04:55.2]} 2. d4 {[%clk 0:04:58.8]}
2... d5 {[%clk 0:04:54.2]} 3. exd5 {[%clk 0:04:57.4]} 3... cxd5 {[%clk
0:04:52.3]} 4. Nc3 {[%clk 0:04:57]} 4... Nc6 {[%clk 0:04:51.4]} 5. Nf3 {[%clk
0:04:54.4]} 5... e6 {[%clk 0:04:50.6]} 6. h3 {[%clk 0:04:53]} 6... Bd6 {[%clk
0:04:49.7]} 7. a3 {[%clk 0:04:52.6]} 7... Nge7 {[%clk 0:04:48.2]} 8. Bd3 {[%clk
0:04:50.8]} 8... Nf5 {[%clk 0:04:45.8]} 9. O-O {[%clk 0:04:46.8]} 9... Nfxd4
{[%clk 0:04:44.5]} 10. Nxd4 {[%clk 0:04:40.8]} 10... Nxd4 {[%clk 0:04:43.3]} 11.
Nb5 {[%clk 0:04:34.7]} 11... Nxb5 {[%clk 0:04:41.4]} 12. Bxb5+ {[%clk
0:04:33.7]} 12... Bd7 {[%clk 0:04:40.5]} 13. Bd3 {[%clk 0:04:28.7]} 13... O-O
{[%clk 0:04:38.9]} 14. Qh5 {[%clk 0:04:25.7]} 14... g6 {[%clk 0:04:31.6]} 15.
Qh6 {[%clk 0:04:20.4]} 15... Be5 {[%clk 0:04:30.5]} 16. Bg5 {[%clk 0:04:18.1]}
16... Qe8 {[%clk 0:04:22.7]} 17. c3 {[%clk 0:04:11]} 17... Bg7 {[%clk
0:04:20.1]} 18. Qh4 {[%clk 0:04:07.9]} 18... e5 {[%clk 0:03:47.8]} 19. Bh6
{[%clk 0:04:05.8]} 19... Bxh6 {[%clk 0:03:41.9]} 20. Qxh6 {[%clk 0:04:04.8]}
20... e4 {[%clk 0:03:41.1]} 21. Bc2 {[%clk 0:04:01.6]} 21... Qe5 {[%clk
0:03:34.6]} 22. Rad1 {[%clk 0:03:57.8]} 22... Rad8 {[%clk 0:03:23.9]} 23. Bb3
{[%clk 0:03:50]} 23... Be6 {[%clk 0:03:16.4]} 24. Rfe1 {[%clk 0:03:47.3]} 24...
f5 {[%clk 0:03:07.2]} 25. h4 {[%clk 0:03:31.8]} 25... Rf6 {[%clk 0:02:58.6]} 26.
h5 {[%clk 0:03:23.7]} 26... g5 {[%clk 0:02:53.5]} 27. Qxg5+ {[%clk 0:03:21.2]}
27... Kf7 {[%clk 0:02:46.4]} 28. h6 {[%clk 0:03:19.4]} 28... Rg6 {[%clk
0:02:43.5]} 29. Qxd8 {[%clk 0:03:16.3]} 29... f4 {[%clk 0:02:33.3]} 30. Bxd5
{[%clk 0:03:06.4]} 30... Rxg2+ {[%clk 0:02:25.1]} 31. Kxg2 {[%clk 0:03:02.8]}
31... Qg5+ {[%clk 0:02:18.6]} 32. Kf1 {[%clk 0:03:01.2]} 32... f3 {[%clk
0:02:13.8]} 33. Qxg5 {[%clk 0:02:57.8]} 33... Bxd5 {[%clk 0:02:11.5]} 34. Qxd5+
{[%clk 0:02:56.5]} 1-0

[Event "Live Chess"]
[Site "Chess.com"]
[Date "2023.05.21"]
[Round "-"]
[White "Long1968"]
[Black "KeithArkell"]
[Result "0-1"]
[WhiteElo "1059"]
[BlackElo "2573"]
[TimeControl "300"]
[EndTime "18:30:37 PDT"]
[Termination "KeithArkell won on time"]

1. e4 {[%clk 0:04:53.6]} 1... c6 {[%clk 0:04:58.6]} 2. d4 {[%clk 0:04:50.3]}
2... d5 {[%clk 0:04:57.9]} 3. e5 {[%clk 0:04:47.8]} 3... c5 {[%clk 0:04:57.2]}
4. c3 {[%clk 0:04:36.8]} 4... Nc6 {[%clk 0:04:56.4]} 5. f4 {[%clk 0:04:31.4]}
5... cxd4 {[%clk 0:04:55.3]} 6. cxd4 {[%clk 0:04:29]} 6... Bf5 {[%clk
0:04:54.3]} 7. Nf3 {[%clk 0:04:24.2]} 7... e6 {[%clk 0:04:53.4]} 8. Bd3 {[%clk
0:04:19]} 8... Bxd3 {[%clk 0:04:51.7]} 9. Qxd3 {[%clk 0:04:16.5]} 9... Nge7
{[%clk 0:04:51.4]} 10. Be3 {[%clk 0:04:10.3]} 10... Nf5 {[%clk 0:04:49.5]} 11.
Kf2 {[%clk 0:03:59]} 11... Qb6 {[%clk 0:04:47.4]} 12. Nbd2 {[%clk 0:03:45.5]}
12... h5 {[%clk 0:04:45.4]} 13. a4 {[%clk 0:03:07.5]} 13... Bb4 {[%clk
0:04:41.8]} 14. Nb3 {[%clk 0:02:26.2]} 14... a5 {[%clk 0:04:39.1]} 15. Qb5
{[%clk 0:02:04.8]} 15... Qxb5 {[%clk 0:04:37]} 16. axb5 {[%clk 0:01:59.5]} 16...
Nb8 {[%clk 0:04:22]} 17. Rhc1 {[%clk 0:01:41.6]} 17... Nd7 {[%clk 0:04:20.3]}
18. Rc7 {[%clk 0:01:32.3]} 18... b6 {[%clk 0:04:19.1]} 19. Rac1 {[%clk
0:01:23.1]} 19... Ke7 {[%clk 0:04:08.6]} 20. Ng5 {[%clk 0:01:14.7]} 20... f6
{[%clk 0:04:06.5]} 21. Nf3 {[%clk 0:00:20.7]} 21... a4 {[%clk 0:04:03.1]} 22.
Nbd2 {[%clk 0:00:13.9]} 22... Nxe3 {[%clk 0:04:00]} 23. Kxe3 {[%clk 0:00:09.9]}
23... a3 {[%clk 0:03:59.3]} 24. bxa3 {[%clk 0:00:04.1]} 24... Rxa3+ {[%clk
0:03:56.8]} 0-1

[Event "Live Chess"]
[Site "Chess.com"]
[Date "2023.05.21"]
[Round "-"]
[White "jimwad"]
[Black "worldchessleaguelive"]
[Result "0-1"]
[WhiteElo "1242"]
[BlackElo "1397"]
[TimeControl "300"]
[EndTime "18:30:41 PDT"]
[Termination "worldchessleaguelive won by resignation"]

1. d4 {[%clk 0:04:55.9]} 1... d5 {[%clk 0:04:59.1]} 2. c4 {[%clk 0:04:54.9]}
2... dxc4 {[%clk 0:04:57.9]} 3. e3 {[%clk 0:04:54]} 3... Nf6 {[%clk 0:04:56.2]}
4. Bxc4 {[%clk 0:04:52]} 4... e6 {[%clk 0:04:55.3]} 5. Nc3 {[%clk 0:04:51.2]}
5... Bb4 {[%clk 0:04:54.2]} 6. Bd2 {[%clk 0:04:49.8]} 6... Nc6 {[%clk
0:04:52.8]} 7. Nf3 {[%clk 0:04:48.6]} 7... O-O {[%clk 0:04:51]} 8. O-O {[%clk
0:04:47.5]} 8... h6 {[%clk 0:04:49.5]} 9. h3 {[%clk 0:04:45.9]} 9... a6 {[%clk
0:04:48.7]} 10. a3 {[%clk 0:04:44.5]} 10... Bxc3 {[%clk 0:04:46.4]} 11. Bxc3
{[%clk 0:04:43.5]} 11... b5 {[%clk 0:04:46.1]} 12. Bd3 {[%clk 0:04:40]} 12...
Bb7 {[%clk 0:04:45.7]} 13. Rc1 {[%clk 0:04:30.2]} 13... Nd5 {[%clk 0:04:44.8]}
14. e4 {[%clk 0:04:24.7]} 14... Nxc3 {[%clk 0:04:41.9]} 15. bxc3 {[%clk
0:04:20.7]} 15... Na5 {[%clk 0:04:34.9]} 16. d5 {[%clk 0:04:14.1]} 16... exd5
{[%clk 0:04:32.1]} 17. exd5 {[%clk 0:04:12.8]} 17... Bxd5 {[%clk 0:04:28.4]} 18.
Ne5 {[%clk 0:04:08]} 18... Qg5 {[%clk 0:04:23]} 19. Ng4 {[%clk 0:03:52.3]} 19...
Be6 {[%clk 0:04:17.2]} 20. f4 {[%clk 0:03:46.6]} 20... Qc5+ {[%clk 0:04:13.2]}
21. Nf2 {[%clk 0:03:42.3]} 21... Rad8 {[%clk 0:04:08.2]} 22. Qe1 {[%clk
0:03:38.9]} 22... Rxd3 {[%clk 0:04:04.1]} 0-1

[Event "Live Chess"]
[Site "Chess.com"]
[Date "2023.05.21"]
[Round "-"]
[White "Conradical12"]
[Black "laminaaprod"]
[Result "0-1"]
[WhiteElo "1651"]
[BlackElo "2264"]
[TimeControl "300"]
[EndTime "18:31:01 PDT"]
[Termination "laminaaprod won by checkmate"]

1. e4 {[%clk 0:04:56.9]} 1... e5 {[%clk 0:04:59.1]} 2. Nf3 {[%clk 0:04:55.7]}
2... d5 {[%clk 0:04:58]} 3. Nxe5 {[%clk 0:04:48.5]} 3... dxe4 {[%clk 0:04:54.4]}
4. Qe2 {[%clk 0:04:47.7]} 4... Nf6 {[%clk 0:04:51.8]} 5. d3 {[%clk 0:04:43.5]}
5... Bd6 {[%clk 0:04:48.5]} 6. Nc4 {[%clk 0:04:38.4]} 6... O-O {[%clk
0:04:47.8]} 7. Nc3 {[%clk 0:04:36.8]} 7... Bf5 {[%clk 0:04:42.1]} 8. Be3 {[%clk
0:04:34.4]} 8... exd3 {[%clk 0:04:40.8]} 9. cxd3 {[%clk 0:04:32.4]} 9... Re8
{[%clk 0:04:39.9]} 10. O-O-O {[%clk 0:04:31.3]} 10... a6 {[%clk 0:04:21.6]} 11.
f3 {[%clk 0:04:27.7]} 11... b5 {[%clk 0:04:16.5]} 12. Nxd6 {[%clk 0:04:24.2]}
12... Qxd6 {[%clk 0:04:14.6]} 13. Qd2 {[%clk 0:04:23.1]} 13... c5 {[%clk
0:04:09.1]} 14. Kb1 {[%clk 0:04:20.5]} 14... Nc6 {[%clk 0:04:05.5]} 15. h4
{[%clk 0:04:14.1]} 15... c4 {[%clk 0:03:52.5]} 16. g4 {[%clk 0:04:04.2]} 16...
Bxd3+ {[%clk 0:03:45.5]} 17. Bxd3 {[%clk 0:04:03]} 17... Qxd3+ {[%clk
0:03:45.4]} 18. Qxd3 {[%clk 0:04:02.3]} 18... cxd3 {[%clk 0:03:45.3]} 19. Rxd3
{[%clk 0:04:01.5]} 19... Nb4 {[%clk 0:03:44.5]} 20. Rd4 {[%clk 0:03:55.9]} 20...
Rxe3 {[%clk 0:03:42.4]} 21. Rhd1 {[%clk 0:03:43.7]} 21... Nc6 {[%clk 0:03:36]}
22. Rd6 {[%clk 0:03:42.4]} 22... Na5 {[%clk 0:03:24.3]} 23. Ne4 {[%clk
0:03:27.9]} 23... h6 {[%clk 0:03:01.9]} 24. Nxf6+ {[%clk 0:03:15.7]} 24... gxf6
{[%clk 0:02:58.5]} 25. Rxf6 {[%clk 0:03:13.9]} 25... Re6 {[%clk 0:02:51.9]} 26.
Rxe6 {[%clk 0:02:34.7]} 26... fxe6 {[%clk 0:02:49.8]} 27. Re1 {[%clk 0:02:32.4]}
27... Kf7 {[%clk 0:02:43.5]} 28. f4 {[%clk 0:02:30.8]} 28... Rg8 {[%clk
0:02:32.7]} 29. g5 {[%clk 0:02:28.9]} 29... hxg5 {[%clk 0:02:32.6]} 30. hxg5
{[%clk 0:02:27.4]} 30... Nc4 {[%clk 0:02:20]} 31. Kc2 {[%clk 0:02:24.4]} 31...
Rh8 {[%clk 0:02:13.4]} 32. b3 {[%clk 0:02:22.3]} 32... Rh2+ {[%clk 0:02:05.8]}
33. Kc3 {[%clk 0:02:15.2]} 33... Nb6 {[%clk 0:02:04.8]} 34. a3 {[%clk
0:02:03.3]} 34... Nd5+ {[%clk 0:02:02.1]} 35. Kd4 {[%clk 0:01:59.9]} 35... Rf2
{[%clk 0:01:36]} 36. g6+ {[%clk 0:01:56.6]} 36... Kf6 {[%clk 0:01:30.2]} 37. g7
{[%clk 0:01:53.2]} 37... Rxf4+ {[%clk 0:01:28.4]} 38. Kc5 {[%clk 0:01:51.1]}
38... Rg4 {[%clk 0:01:23.1]} 39. Rf1+ {[%clk 0:01:22.6]} 39... Ke7 {[%clk
0:01:19.5]} 40. Rd1 {[%clk 0:00:50]} 40... Rxg7 {[%clk 0:01:16.7]} 41. Rxd5
{[%clk 0:00:49.4]} 41... exd5 {[%clk 0:01:15.7]} 42. Kxd5 {[%clk 0:00:49.3]}
42... Rg3 {[%clk 0:01:14.3]} 43. a4 {[%clk 0:00:46.9]} 43... Rxb3 {[%clk
0:01:13.3]} 44. axb5 {[%clk 0:00:46.1]} 44... Rxb5+ {[%clk 0:01:13.2]} 45. Kc4
{[%clk 0:00:45]} 45... Kd7 {[%clk 0:01:12.6]} 46. Kc3 {[%clk 0:00:43.8]} 46...
Kc6 {[%clk 0:01:12.5]} 47. Kc4 {[%clk 0:00:42.9]} 47... a5 {[%clk 0:01:12.4]}
48. Kc3 {[%clk 0:00:42.2]} 48... a4 {[%clk 0:01:12.3]} 49. Kc2 {[%clk
0:00:41.5]} 49... a3 {[%clk 0:01:12.2]} 50. Kc1 {[%clk 0:00:40.3]} 50... a2
{[%clk 0:01:12.1]} 51. Kd2 {[%clk 0:00:37.8]} 51... a1=Q {[%clk 0:01:12]} 52.
Kc2 {[%clk 0:00:36.9]} 52... Qa4+ {[%clk 0:01:11.9]} 53. Kc3 {[%clk 0:00:34.5]}
53... Rb3+ {[%clk 0:01:11.8]} 54. Kc2 {[%clk 0:00:33.5]} 54... Qa2+ {[%clk
0:01:11.7]} 55. Kd1 {[%clk 0:00:31.7]} 55... Rb1# {[%clk 0:01:11.6]} 0-1